fUST/lending_fUST_20260118
["ID","MTS","AMOUNT","RATE_DAILY","PERIOD"]
[402381976,1768669871804,-974.44,0.00016986,3]
[402381978,1768669871814,-500.0,0.00016986,3]
[402381980,1768669871824,-500.0,0.00016986,3]
[402381982,1768669871835,-500.0,0.00016986,3]
[402381984,1768669871845,-500.0,0.00016986,3]
[402381986,1768669871856,-500.0,0.00016986,3]
[402381988,1768669871866,-500.0,0.00016986,3]
[402381991,1768669871877,-500.0,0.00016986,3]
[402381993,1768669871887,-500.0,0.00016986,3]
[402381995,1768669871897,-500.0,0.00016986,3]
[402381997,1768669871908,-500.0,0.00016986,3]
[402381999,1768669871918,-605.29,0.00016986,3]
[402382001,1768669871928,-500.0,0.00016986,3]
[402382003,1768669871937,-500.0,0.00016986,3]
[402382005,1768669871947,-500.0,0.00016986,3]
[402382007,1768669871957,-500.0,0.00016986,3]
[402382009,1768669871967,-1502.15,0.00016986,3]
[402382011,1768669871976,-534.13,0.00016986,3]
[402382013,1768669871986,-500.0,0.00016986,3]
[402382015,1768669871996,-778.71,0.00016986,3]
[402382017,1768669872006,-1453.27,0.00016986,3]
[402382019,1768669872016,-1503.68,0.00016986,3]
[402382021,1768669872029,-500.0,0.00016986,3]
[402382023,1768669872038,-500.0,0.00016986,3]
[402382025,1768669872050,-500.0,0.00016986,3]
[402382027,1768669872060,-500.0,0.00016986,3]
[402382029,1768669872070,-500.0,0.00016986,3]
[402382031,1768669872079,-500.0,0.00016986,3]
[402382033,1768669872090,-7566.04,0.00016986,3]
[402382035,1768669872100,-2006.78,0.00016986,3]
[402382037,1768669872109,-709.42,0.00016986,3]
[402382039,1768669872119,-2532.74,0.00016986,3]
[402382042,1768669872129,-500.0,0.00016986,3]
[402382044,1768669872139,-500.0,0.00016986,3]
[402382046,1768669872148,-500.0,0.00016986,3]
[402382048,1768669872158,-500.0,0.00016986,3]
[402382050,1768669872168,-500.0,0.00016986,3]
[402382052,1768669872178,-500.0,0.00016986,3]
[402382054,1768669872188,-876.59,0.00016986,3]
[402382056,1768669872197,-500.0,0.00016986,3]
[402382058,1768669872207,-500.0,0.00016986,3]
[402382060,1768669872216,-500.0,0.00016986,3]
[402382062,1768669872226,-1597.27,0.00016986,3]
[402382064,1768669872237,-500.0,0.00016986,3]
[402382066,1768669872247,-500.0,0.00016986,3]
[402382068,1768669872258,-500.0,0.00016986,3]
[402382070,1768669872268,-731.96,0.00016986,3]
[402382072,1768669872278,-500.0,0.00016986,3]
[402382075,1768669872287,-887.59,0.00016986,3]
[402382102,1768669872524,-500.0,0.00016986,3]
[402382104,1768669872535,-577.24,0.00016986,3]
[402382106,1768669872546,-771.67,0.00016986,3]
[402382109,1768669872557,-500.0,0.00016986,3]
[402382111,1768669872571,-2025.2,0.00016986,3]
[402382113,1768669872580,-500.0,0.00016986,3]
[402382115,1768669872590,-500.0,0.00016986,3]
[402382117,1768669872599,-1494.01,0.00016986,3]
[402382119,1768669872609,-500.0,0.00016986,3]
[402382121,1768669872618,-806.92,0.00016986,3]
[402382123,1768669872627,-500.0,0.00016986,3]
[402382125,1768669872637,-500.0,0.00016986,3]
[402382127,1768669872646,-500.0,0.00016986,3]
[402382129,1768669872655,-500.0,0.00016986,3]
[402382131,1768669872664,-582.23,0.00016986,3]
[402382133,1768669872673,-500.0,0.00016986,3]
[402382135,1768669872683,-877.12,0.00016986,3]
[402382137,1768669872692,-890.53,0.00016986,3]
[402382139,1768669872700,-1695.64,0.00016986,3]
[402382141,1768669872710,-500.0,0.00016986,3]
[402382143,1768669872719,-648.78,0.00016986,3]
[402382145,1768669872729,-1396.54,0.00016986,3]
[402382147,1768669872738,-500.0,0.00016986,3]
[402382149,1768669872747,-822.65,0.00016986,3]
[402382151,1768669872757,-500.0,0.00016986,3]
[402382153,1768669872766,-1860.69,0.00016986,3]
[402382155,1768669872775,-563.95,0.00016986,3]
[402382157,1768669872785,-500.0,0.00016986,3]
[402382159,1768669872794,-524.56945144,0.00016986,3]
[402382161,1768669872803,-1121.41,0.00016986,3]
[402382163,1768669872813,-681.26,0.00016986,3]
[402382165,1768669872823,-500.0,0.00016986,3]
[402382167,1768669872833,-500.0,0.00016986,3]
[402382169,1768669872843,-1574.77,0.00016986,3]
[402382171,1768669872852,-500.0,0.00016986,3]
[402382173,1768669872862,-710.07,0.00016986,3]
[402382175,1768669872872,-593.25,0.00016986,3]
[402382177,1768669872881,-819.68,0.00016986,3]
[402382179,1768669872891,-547.02,0.00016986,3]
[402382181,1768669872901,-500.0,0.00016986,3]
[402382183,1768669872911,-541.55,0.00016986,3]
[402382185,1768669872920,-898.93,0.00016986,3]
[402382187,1768669872929,-272.75784748,0.00016986,3]
[402382189,1768669872937,-500.0,0.00016986,3]
[402382191,1768669872947,-500.0,0.00016986,3]
[402382193,1768669872957,-206.61780172,0.00016986,3]
[402382195,1768669872966,-500.0,0.00016986,3]
[402382197,1768669872975,-514.7,0.00016986,3]
[402382199,1768669872984,-500.0,0.00016986,3]
[402382201,1768669872993,-1717.69,0.00016986,3]
[402382203,1768669873003,-500.0,0.00016986,3]
[402382205,1768669873012,-1181.35,0.00016986,3]
[402382207,1768669873022,-500.0,0.00016986,3]
[402382209,1768669873034,-500.0,0.00016986,3]
[402382211,1768669873044,-870.07,0.00016986,3]
[402382214,1768669873054,-1177.53,0.00016986,3]
[402382216,1768669873063,-500.0,0.00016986,3]
[402382218,1768669873073,-509.49842469,0.00016986,3]
[402382220,1768669873082,-500.0,0.00016986,3]
[402382222,1768669873093,-1477.98,0.00016986,3]
[402382224,1768669873102,-548.99,0.00016986,3]
[402382226,1768669873111,-1364.59,0.00016986,3]
[402382228,1768669873121,-500.0,0.00016986,3]
[402382230,1768669873131,-500.0,0.00016986,3]
[402382232,1768669873141,-500.0,0.00016986,3]
[402382234,1768669873151,-500.0,0.00016986,3]
[402382236,1768669873160,-1272.0,0.00016986,3]
[402382238,1768669873170,-500.0,0.00016986,3]
[402382240,1768669873180,-500.0,0.00016986,3]
[402382242,1768669873190,-500.0,0.00016986,3]
[402382244,1768669873200,-1023.93,0.00016986,3]
[402382246,1768669873210,-1022.84,0.00016986,3]
[402382248,1768669873220,-500.0,0.00016986,3]
[402382250,1768669873229,-516.54,0.00016986,3]
[402382252,1768669873238,-500.0,0.00016986,3]
[402382254,1768669873248,-3403.79,0.00016986,3]
[402382256,1768669873258,-770.4,0.00016986,3]
[402382258,1768669873267,-510.09347373,0.00016986,3]
[402382260,1768669873276,-1414.69,0.00016986,3]
[402382262,1768669873285,-500.0,0.00016986,3]
[402382264,1768669873294,-500.0,0.00016986,3]
[402382266,1768669873304,-500.0,0.00016986,3]
[402382268,1768669873313,-690.86,0.00016986,3]
[402382270,1768669873323,-743.92,0.00016986,3]
[402382272,1768669873333,-500.0,0.00016986,3]
[402382274,1768669873343,-500.0,0.00016986,3]
[402382276,1768669873352,-1368.68,0.00016986,3]
[402382278,1768669873362,-692.37,0.00016986,3]
[402382280,1768669873371,-500.0,0.00016986,3]
[402382282,1768669873380,-500.0,0.00016986,3]
[402382284,1768669873390,-500.0,0.00016986,3]
[402382286,1768669873399,-674.52,0.00016986,3]
[402382288,1768669873408,-547.26,0.00016986,3]
[402382290,1768669873417,-500.0,0.00016986,3]
[402382292,1768669873427,-500.0,0.00016986,3]
[402382294,1768669873436,-500.0,0.00016986,3]
[402382296,1768669873445,-500.0,0.00016986,3]
[402382298,1768669873455,-500.0,0.00016986,3]
[402382300,1768669873464,-500.0,0.00016986,3]
[402382302,1768669873473,-774.57,0.00016986,3]
[402382304,1768669873483,-1114.84,0.00016986,3]
[402382306,1768669873493,-500.0,0.00016986,3]
[402382308,1768669873503,-500.0,0.00016986,3]
[402382310,1768669873512,-500.0,0.00016986,3]
[402382312,1768669873521,-500.0,0.00016986,3]
[402382314,1768669873532,-14376.21,0.00016986,3]
[402382315,1768669873542,-1568.81,0.00016986,3]
[402382316,1768669873551,-1380.77,0.00016986,3]
[402382317,1768669873561,-500.0,0.00016986,3]
[402382318,1768669873575,-500.0,0.00016986,3]
[402382319,1768669873585,-584.81708203,0.00016986,3]
[402382320,1768669873594,-500.0,0.00016986,3]
[402382321,1768669873604,-500.0,0.00016986,3]
[402382322,1768669873614,-680.81,0.00016986,3]
[402382323,1768669873624,-702.8,0.00016986,3]
[402382324,1768669873633,-558.44,0.00016986,3]
[402382325,1768669873644,-1285.11,0.00016986,3]
[402382326,1768669873653,-500.0,0.00016986,3]
[402382327,1768669873663,-1541.54,0.00016986,3]
[402382328,1768669873672,-253.82902155,0.00016986,3]
[402382329,1768669873682,-885.92,0.00016986,3]
[402382330,1768669873691,-552.93,0.00016986,3]
[402382331,1768669873700,-500.0,0.00016986,3]
[402382332,1768669873709,-500.0,0.00016986,3]
[402382333,1768669873719,-500.0,0.00016986,3]
[402382334,1768669873728,-500.0,0.00016986,3]
[402382336,1768669873737,-500.0,0.00016986,3]
[402382337,1768669873746,-500.0,0.00016986,3]
[402382339,1768669873755,-539.86,0.00016986,3]
[402382341,1768669873765,-1422.11,0.00016986,3]
[402382343,1768669873775,-895.54,0.00016986,3]
[402382345,1768669873784,-581.61,0.00016986,3]
[402382347,1768669873794,-878.96,0.00016986,3]
[402382349,1768669873803,-1148.17,0.00016986,3]
[402382351,1768669873812,-500.0,0.00016986,3]
[402382353,1768669873822,-2589.16,0.00016986,3]
[402382355,1768669873831,-500.0,0.00016986,3]
[402382357,1768669873841,-500.0,0.00016986,3]
[402382359,1768669873851,-500.0,0.00016986,3]
[402382361,1768669873860,-500.0,0.00016986,3]
[402382363,1768669873869,-693.13,0.00016986,3]
[402382365,1768669873879,-1236.21,0.00016986,3]
[402382367,1768669873889,-632.1,0.00016986,3]
[402382369,1768669873899,-500.0,0.00016986,3]
[402382371,1768669873908,-224.22753916,0.00016986,3]
[402382373,1768669873918,-500.0,0.00016986,3]
[402382375,1768669873927,-500.0,0.00016986,3]
[402382377,1768669873937,-1103.35,0.00016986,3]
[402382379,1768669873946,-1025.61,0.00016986,3]
[402382381,1768669873957,-500.0,0.00016986,3]
[402382383,1768669873965,-500.0,0.00016986,3]
[402382385,1768669873975,-500.0,0.00016986,3]
[402382387,1768669873984,-500.0,0.00016986,3]
[402382389,1768669873993,-500.0,0.00016986,3]
[402382391,1768669874003,-500.0,0.00016986,3]
[402382393,1768669874012,-500.0,0.00016986,3]
[402382395,1768669874022,-500.0,0.00016986,3]
[402382397,1768669874031,-500.0,0.00016986,3]
[402382399,1768669874041,-500.0,0.00016986,3]
[402382401,1768669874050,-1530.35,0.00016986,3]
[402382403,1768669874060,-1293.36,0.00016986,3]
[402382405,1768669874069,-1411.66,0.00016986,3]
[402382407,1768669874078,-1180.34,0.00016986,3]
[402382409,1768669874087,-500.0,0.00016986,3]
[402382411,1768669874096,-500.0,0.00016986,3]
[402382413,1768669874105,-1399.24,0.00016986,3]
[402382415,1768669874115,-575.62,0.00016986,3]
[402382417,1768669874125,-500.0,0.00016986,3]
[402382419,1768669874135,-500.0,0.00016986,3]
[402382421,1768669874144,-1032.1,0.00016986,3]
[402382423,1768669874154,-500.0,0.00016986,3]
[402382425,1768669874163,-500.0,0.00016986,3]
[402382427,1768669874174,-609.57,0.00016986,3]
[402382429,1768669874183,-500.0,0.00016986,3]
[402382431,1768669874193,-1569.6,0.00016986,3]
[402382433,1768669874202,-500.0,0.00016986,3]
[402382435,1768669874211,-500.0,0.00016986,3]
[402382437,1768669874221,-500.0,0.00016986,3]
[402382439,1768669874230,-500.0,0.00016986,3]
[402382441,1768669874240,-1051.96,0.00016986,3]
[402382443,1768669874249,-1321.15,0.00016986,3]
[402382445,1768669874259,-500.0,0.00016986,3]
[402382448,1768669874268,-500.0,0.00016986,3]
[402382449,1768669874278,-500.0,0.00016986,3]
[402382452,1768669874287,-499.99622273,0.00016986,3]
[402382454,1768669874297,-500.0,0.00016986,3]
[402382456,1768669874306,-545.77,0.00016986,3]
[402382458,1768669874315,-500.0,0.00016986,3]
[402382460,1768669874324,-500.0,0.00016986,3]
[402382462,1768669874334,-500.0,0.00016986,3]
[402382464,1768669874344,-500.0,0.00016986,3]
[402382466,1768669874353,-500.0,0.00016986,3]
[402382468,1768669874363,-500.0,0.00016986,3]
[402382470,1768669874372,-500.0,0.00016986,3]
[402382472,1768669874381,-1628.67,0.00016986,3]
[402382474,1768669874391,-1173.22,0.00016986,3]
[402382476,1768669874400,-500.0,0.00016986,3]
[402382477,1768669874408,-500.0,0.00016986,3]
[402382479,1768669874418,-500.0,0.00016986,2]
[402382482,1768669874427,-500.0,0.00016986,3]
[402382484,1768669874437,-539.32,0.00016986,3]
[402382486,1768669874447,-1249.71,0.00016986,3]
[402382488,1768669874456,-500.0,0.00016986,3]
[402382490,1768669874465,-1452.79,0.00016986,3]
[402382492,1768669874474,-937.01,0.00016986,3]
[402382494,1768669874484,-500.0,0.00016986,3]
[402382496,1768669874493,-972.71,0.00016986,3]
[402382498,1768669874502,-739.58,0.00016986,3]
[402382500,1768669874511,-500.0,0.00016986,3]
[402382502,1768669874520,-1972.54,0.00016986,3]
[402382504,1768669874529,-849.49,0.00016986,3]
[402382506,1768669874539,-500.0,0.00016986,3]
[402382508,1768669874547,-500.0,0.00016986,3]
[402382510,1768669874556,-500.0,0.00016986,3]
[402382512,1768669874568,-500.0,0.00016986,3]
[402382514,1768669874577,-500.0,0.00016986,3]
[402382515,1768669874586,-955.79,0.00016986,3]
[402382518,1768669874596,-849.77,0.00016986,3]
[402382520,1768669874607,-500.0,0.00016986,3]
[402382522,1768669874617,-500.0,0.00016986,3]
[402382524,1768669874626,-500.0,0.00016986,3]
[402382525,1768669874635,-2175.59,0.00016986,3]
[402382527,1768669874646,-2633.13,0.00016986,3]
[402382530,1768669874655,-500.0,0.00016986,2]
[402382531,1768669874665,-500.0,0.00016986,3]
[402382533,1768669874674,-500.0,0.00016986,3]
[402382535,1768669874684,-500.0,0.00016986,2]
[402382537,1768669874693,-150.12056451,0.00016986,2]
[402382540,1768669874703,-2004.21199472,0.00016986,2]
[402382542,1768669874713,-13761.0,0.00017,2]
[402382543,1768669874723,-200.0,0.00017,2]
[402382545,1768669874733,-200.0,0.00017,2]
[402382548,1768669874743,-200.0,0.00017,2]
[402382549,1768669874752,-200.0,0.00017,2]
[402382551,1768669874762,-200.0,0.00017,2]
[402382553,1768669874771,-200.0,0.00017,2]
[402382555,1768669874781,-200.0,0.00017,2]
[402382565,1768669874863,-200.0,0.00017,2]
[402382567,1768669874873,-209.50263211,0.00017,2]
[402382569,1768669874882,-500.0,0.00017,2]
[402382571,1768669874891,-800.0,0.00017008,2]
[402382573,1768669874900,-81764.19339649,0.0001701,3]
[402382575,1768669874910,-3510.460015,0.00017014,7]
[402382577,1768669874921,-800.0,0.00017023,2]
[402382579,1768669874930,-800.0,0.00017034,2]
[402382581,1768669874939,-208.2,0.00017036,2]
[402382583,1768669874949,-800.0,0.00017042,2]
[402382585,1768669874958,-800.0,0.00017056,2]
[402382587,1768669874968,-800.0,0.0001707,2]
[402382589,1768669874977,-800.0,0.0001709,2]
[402382591,1768669874989,-800.0,0.00017099,2]
[402382593,1768669874999,-203.28415453,0.00017099,2]
[402382595,1768669875009,-800.0,0.00017119,2]
[402382597,1768669875020,-800.0,0.00017144,2]
[402382599,1768669875029,-800.0,0.00017176,2]
[402382602,1768669875040,-800.0,0.00017179,2]
[402382604,1768669875050,-800.0,0.00017181,2]
[402382606,1768669875060,-800.0,0.00017194,2]
[402382608,1768669875069,-800.0,0.00017221,2]
[402382609,1768669875081,-444.94858251,0.00017232,25]
[402382611,1768669875092,-800.0,0.00017232,2]
[402382613,1768669875101,-800.0,0.00017236,2]
[402382615,1768669875110,-800.0,0.00017245,2]
[402382617,1768669875118,-800.0,0.00017255,2]
[402382619,1768669875128,-500.0,0.0001726,3]
[402382621,1768669875138,-673.12713185,0.0001726,3]
[402382623,1768669875147,-500.0,0.0001726,3]
[402382625,1768669875156,-500.0,0.0001726,3]
[402382627,1768669875167,-500.0,0.0001726,3]
[402382629,1768669875177,-500.0,0.0001726,3]
[402382631,1768669875187,-500.0,0.0001726,3]
[402382633,1768669875197,-500.0,0.0001726,3]
[402382635,1768669875206,-500.0,0.0001726,3]
[402382637,1768669875215,-697.21,0.0001726,3]
[402382639,1768669875224,-500.0,0.0001726,3]
[402382641,1768669875233,-500.0,0.0001726,3]
[402382643,1768669875243,-1537.06,0.0001726,3]
[402382645,1768669875252,-500.0,0.0001726,3]
[402382647,1768669875261,-500.0,0.0001726,3]
[402382649,1768669875271,-500.0,0.0001726,3]
[402382651,1768669875280,-435.32524061,0.0001726,3]
[402382653,1768669875289,-500.0,0.0001726,3]
[402382655,1768669875298,-727.37,0.0001726,3]
[402382657,1768669875307,-500.0,0.0001726,3]
[402382659,1768669875316,-500.0,0.0001726,3]
[402382661,1768669875325,-500.0,0.0001726,3]
[402382663,1768669875334,-674.4,0.0001726,3]
[402382665,1768669875344,-1051.61,0.0001726,3]
[402382667,1768669875353,-500.0,0.0001726,3]
[402382669,1768669875362,-526.97,0.0001726,3]
[402382671,1768669875371,-500.0,0.0001726,3]
[402382673,1768669875380,-500.0,0.0001726,3]
[402382675,1768669875389,-500.0,0.0001726,3]
[402382677,1768669875398,-500.0,0.0001726,3]
[402382679,1768669875407,-500.0,0.0001726,3]
[402382681,1768669875416,-1003.82,0.0001726,3]
[402382683,1768669875425,-500.0,0.0001726,3]
[402382685,1768669875434,-977.84,0.0001726,3]
[402382687,1768669875443,-257.29403538,0.0001726,3]
[402382689,1768669875452,-500.0,0.0001726,3]
[402382691,1768669875462,-562.12,0.0001726,3]
[402382693,1768669875471,-661.08,0.0001726,3]
[402382695,1768669875480,-500.0,0.0001726,3]
[402382697,1768669875490,-500.0,0.0001726,3]
[402382699,1768669875500,-1342.63,0.0001726,3]
[402382701,1768669875509,-500.0,0.0001726,3]
[402382703,1768669875518,-546.74,0.0001726,3]
[402382704,1768669875527,-500.0,0.0001726,3]
[402382707,1768669875537,-500.0,0.0001726,3]
[402382708,1768669875547,-500.0,0.0001726,3]
[402382711,1768669875556,-500.0,0.0001726,3]
[402382713,1768669875568,-514.38,0.0001726,3]
[402382715,1768669875578,-500.0,0.0001726,3]
[402382716,1768669875587,-500.0,0.0001726,3]
[402382719,1768669875597,-500.0,0.0001726,3]
[402382721,1768669875607,-500.0,0.0001726,3]
[402382722,1768669875616,-500.0,0.0001726,3]
[402382725,1768669875626,-613.18,0.0001726,3]
[402382727,1768669875635,-500.0,0.0001726,3]
[402382728,1768669875644,-500.0,0.0001726,3]
[402382731,1768669875653,-500.0,0.0001726,3]
[402382733,1768669875663,-500.0,0.0001726,3]
[402382735,1768669875672,-500.0,0.0001726,3]
[402382737,1768669875681,-500.0,0.0001726,3]
[402382739,1768669875690,-1091.45,0.0001726,3]
[402382741,1768669875701,-500.0,0.0001726,3]
[402382743,1768669875710,-500.0,0.0001726,3]
[402382745,1768669875720,-843.1,0.0001726,3]
[402382746,1768669875729,-500.0,0.0001726,3]
[402382749,1768669875738,-500.0,0.0001726,3]
[402382751,1768669875748,-500.0,0.0001726,3]
[402382752,1768669875757,-500.0,0.0001726,3]
[402382754,1768669875766,-822.64,0.0001726,3]
[402382756,1768669875775,-527.73,0.0001726,3]
[402382758,1768669875784,-891.16,0.0001726,3]
[402382760,1768669875793,-500.0,0.0001726,3]
[402382762,1768669875803,-575.88539769,0.0001726,3]
[402382764,1768669875812,-1723.32,0.0001726,3]
[402382766,1768669875821,-500.0,0.0001726,3]
[402382768,1768669875831,-500.0,0.0001726,3]
[402382770,1768669875840,-500.0,0.0001726,3]
[402382772,1768669875850,-500.0,0.0001726,3]
[402382774,1768669875859,-500.0,0.0001726,3]
[402382776,1768669875869,-891.17,0.0001726,3]
[402382778,1768669875878,-756.73,0.0001726,3]
[402382780,1768669875887,-1663.41,0.0001726,3]
[402382782,1768669875896,-500.0,0.0001726,3]
[402382784,1768669875906,-500.0,0.0001726,3]
[402382786,1768669875915,-500.0,0.0001726,3]
[402382788,1768669875923,-975.35,0.0001726,3]
[402382790,1768669875932,-500.0,0.0001726,3]
[402382792,1768669875942,-500.0,0.0001726,3]
[402382794,1768669875951,-569.01,0.0001726,3]
[402382796,1768669875960,-500.0,0.0001726,3]
[402382798,1768669875969,-770.5,0.0001726,3]
[402382800,1768669875978,-500.0,0.0001726,3]
[402382802,1768669875987,-1208.54,0.0001726,3]
[402382804,1768669875998,-500.0,0.0001726,3]
[402382806,1768669876007,-632.16,0.0001726,3]
[402382808,1768669876016,-1521.64,0.0001726,3]
[402382810,1768669876026,-500.0,0.0001726,3]
[402382812,1768669876036,-500.0,0.0001726,3]
[402382815,1768669876046,-548.34,0.0001726,3]
[402382817,1768669876055,-1008.77,0.0001726,3]
[402382819,1768669876064,-500.0,0.0001726,3]
[402382821,1768669876074,-2004.45,0.0001726,3]
[402382822,1768669876083,-945.54,0.0001726,3]
[402382825,1768669876093,-601.7,0.0001726,3]
[402382827,1768669876102,-574.65,0.0001726,3]
[402382829,1768669876111,-1355.06,0.0001726,3]
[402382831,1768669876120,-600.66,0.0001726,3]
[402382833,1768669876129,-963.02,0.0001726,3]
[402382835,1768669876138,-619.79,0.0001726,3]
[402382837,1768669876147,-500.0,0.0001726,3]
[402382839,1768669876156,-358.09548366,0.0001726,3]
[402382841,1768669876165,-1122.16,0.0001726,3]
[402382843,1768669876175,-500.0,0.0001726,3]
[402382844,1768669876184,-500.0,0.0001726,3]
[402382846,1768669876193,-500.0,0.0001726,3]
[402382849,1768669876202,-520.55,0.0001726,3]
[402382850,1768669876211,-980.93,0.0001726,3]
[402382852,1768669876220,-1043.62,0.0001726,3]
[402382854,1768669876229,-596.38925241,0.0001726,3]
[402382856,1768669876239,-513.25,0.0001726,3]
[402382858,1768669876249,-914.72,0.0001726,3]
[402382860,1768669876258,-997.98,0.0001726,3]
[402382862,1768669876267,-500.0,0.0001726,3]
[402382864,1768669876277,-500.0,0.0001726,3]
[402382867,1768669876286,-1293.8,0.0001726,3]
[402382869,1768669876295,-500.0,0.0001726,3]
[402382870,1768669876304,-500.0,0.0001726,3]
[402382873,1768669876314,-1826.55,0.0001726,3]
[402382874,1768669876323,-649.67,0.0001726,3]
[402382876,1768669876332,-500.0,0.0001726,3]
[402382878,1768669876341,-500.0,0.0001726,3]
[402382880,1768669876350,-540.45385614,0.0001726,3]
[402382882,1768669876360,-500.0,0.0001726,3]
[402382884,1768669876369,-500.0,0.0001726,3]
[402382886,1768669876379,-972.93,0.0001726,3]
[402382888,1768669876388,-500.0,0.0001726,3]
[402382890,1768669876397,-500.0,0.0001726,3]
[402382892,1768669876406,-500.0,0.0001726,3]
[402382894,1768669876415,-887.91,0.0001726,3]
[402382896,1768669876424,-873.02,0.0001726,3]
[402382898,1768669876433,-500.0,0.0001726,2]
[402382900,1768669876443,-500.0,0.0001726,3]
[402382902,1768669876452,-1225.73,0.0001726,3]
[402382904,1768669876461,-500.0,0.0001726,3]
[402382906,1768669876471,-500.0,0.0001726,3]
[402382908,1768669876480,-1346.87,0.0001726,3]
[402382910,1768669876489,-500.0,0.0001726,3]
[402382912,1768669876498,-500.0,0.0001726,2]
[402382914,1768669876507,-540.9,0.0001726,3]
[402382916,1768669876516,-1000.0,0.0001726,2]
[402382918,1768669876525,-500.0,0.0001726,3]
[402382920,1768669876534,-853.74,0.0001726,3]
[402382922,1768669876543,-637.34,0.0001726,3]
[402382924,1768669876553,-500.0,0.0001726,3]
[402382926,1768669876564,-500.0,0.0001726,3]
[402382929,1768669876576,-500.0,0.0001726,3]
[402382931,1768669876585,-500.0,0.0001726,3]
[402382933,1768669876595,-500.0,0.0001726,3]
[402382935,1768669876605,-536.25086162,0.0001726,3]
[402382936,1768669876614,-543.12,0.0001726,3]
[402382938,1768669876623,-500.0,0.0001726,3]
[402382941,1768669876633,-874.93,0.0001726,3]
[402382943,1768669876643,-1510.5,0.0001726,3]
[402382945,1768669876653,-500.0,0.0001726,3]
[402382947,1768669876662,-510.23,0.0001726,3]
[402382948,1768669876671,-1075.6,0.0001726,3]
[402382951,1768669876680,-500.0,0.0001726,3]
[402382953,1768669876690,-500.0,0.0001726,3]
[402382955,1768669876700,-500.0,0.0001726,3]
[402382957,1768669876710,-500.0,0.0001726,3]
[402382959,1768669876719,-500.0,0.0001726,3]
[402382961,1768669876728,-500.0,0.0001726,3]
[402382963,1768669876738,-1554.86,0.0001726,3]
[402382964,1768669876747,-500.0,0.0001726,3]
[402382966,1768669876756,-500.0,0.0001726,3]
[402382968,1768669876765,-500.0,0.0001726,3]
[402382970,1768669876774,-516.86,0.0001726,3]
[402382972,1768669876783,-748.62,0.0001726,3]
[402382974,1768669876793,-1203.14,0.0001726,3]
[402382976,1768669876802,-345.54297394,0.0001726,3]
[402382978,1768669876812,-500.0,0.0001726,3]
[402382979,1768669876821,-500.0,0.0001726,3]
[402382980,1768669876830,-500.0,0.0001726,3]
[402382981,1768669876840,-940.17,0.0001726,3]
[402382982,1768669876849,-907.89,0.0001726,3]
[402382983,1768669876859,-500.0,0.0001726,3]
[402382984,1768669876868,-500.0,0.0001726,3]